[Event "Titled Tuesday Blitz November 08 Early 2022"]
[White "Firat, Burak"]
[Black "Pranav, V"]
[WhiteFideId "6305881"]
[BlackFideId "25060783"]
[WhiteElo "2392"]
[BlackElo "2430"]
[Result "0-1"]
[Round "06"]
[TimeControl "180+1"]
[Date "2022.11.09"]
[WhiteClock "0:00:15"]
[BlackClock "0:00:51"]

1. Nf3 {[%clk 0:03:00]}  d5 {[%clk 0:02:56]} 2. d4 {[%clk 0:03:01]}  Nf6 {[%clk 0:02:56]} 3. c4 {[%clk 0:03:01]}  e6 {[%clk 0:02:56]} 4. Nc3 {[%clk 0:03:02]}  Be7 {[%clk 0:02:57]} 5. Bf4 {[%clk 0:03:02]}  O-O {[%clk 0:02:57]} 6. e3 {[%clk 0:03:03]}  b6 {[%clk 0:02:57]} 7. Rc1 {[%clk 0:03:01]}  Bb7 {[%clk 0:02:57]} 8. a3 {[%clk 0:03:01]}  a6 {[%clk 0:02:53]} 9. cxd5 {[%clk 0:03:00]}  exd5 {[%clk 0:02:52]} 10. Bd3 {[%clk 0:02:58]}  Nbd7 {[%clk 0:02:52]} 11. Ne5 {[%clk 0:02:50]}  c5 {[%clk 0:02:50]} 12. O-O {[%clk 0:02:49]}  Re8 {[%clk 0:02:48]} 13. Nxd7 {[%clk 0:02:41]}  Nxd7 {[%clk 0:02:21]} 14. dxc5 {[%clk 0:02:21]}  Nxc5 {[%clk 0:02:17]} 15. Bb1 {[%clk 0:02:16]}  Bf6 {[%clk 0:02:15]} 16. Qg4 {[%clk 0:01:56]}  g6 {[%clk 0:02:00]} 17. Rfd1 {[%clk 0:01:54]}  h5 {[%clk 0:02:00]} 18. Qg3 {[%clk 0:01:49]}  d4 {[%clk 0:01:54]} 19. exd4 {[%clk 0:01:39]}  Bh4 {[%clk 0:01:53]} 20. Qh3 {[%clk 0:01:27]}  Nb3 {[%clk 0:01:45]} 21. Rc2 {[%clk 0:00:55]}  Qxd4 {[%clk 0:01:42]} 22. Be3 {[%clk 0:00:41]}  Qf6 {[%clk 0:01:37]} 23. Ba2 {[%clk 0:00:23]}  Nc5 {[%clk 0:01:22]} 24. Rcd2 {[%clk 0:00:19]}  Rad8 {[%clk 0:01:07]} 25. Nd5 {[%clk 0:00:19]}  Bxd5 {[%clk 0:01:03]} 26. Bxd5 {[%clk 0:00:20]}  Bg5 {[%clk 0:00:59]} 27. Bxg5 {[%clk 0:00:15]}  Qxg5 {[%clk 0:01:00]} 28. Qf3 {[%clk 0:00:15]}  Qxd2 {[%clk 0:00:50]} 29. Qxf7+ {[%clk 0:00:15]}  Kh8 {[%clk 0:00:51]} 30. Qf6+ {[%clk 0:00:15]}  Kh7 {[%clk 0:00:51]} 0-1


[Site "https://www.chess.com"]

[Event "Titled Tuesday Blitz November 08 Early 2022"]
[White "Gabdrakhmanov, Azat"]
[Black "Shimanov, Aleksandr"]
[WhiteFideId "34189197"]
[BlackFideId "4198603"]
[WhiteElo "2254"]
[BlackElo "2605"]
[Result "0-1"]
[Round "06"]
[TimeControl "180+1"]
[Date "2022.11.09"]
[WhiteClock "0:00:07"]
[BlackClock "0:00:04"]

1. e4 {[%clk 0:03:00]}  d5 {[%clk 0:02:59]} 2. exd5 {[%clk 0:03:00]}  Qxd5 {[%clk 0:03:00]} 3. Nc3 {[%clk 0:03:01]}  Qe5+ {[%clk 0:03:00]} 4. Nge2 {[%clk 0:02:59]}  Nf6 {[%clk 0:02:59]} 5. d4 {[%clk 0:02:55]}  Qa5 {[%clk 0:02:59]} 6. Bd2 {[%clk 0:02:54]}  c6 {[%clk 0:02:54]} 7. Ne4 {[%clk 0:02:38]}  Qb6 {[%clk 0:02:52]} 8. Nxf6+ {[%clk 0:02:38]}  exf6 {[%clk 0:02:53]} 9. Bc3 {[%clk 0:02:31]}  Bd6 {[%clk 0:02:50]} 10. Qd2 {[%clk 0:02:31]}  O-O {[%clk 0:02:50]} 11. O-O-O {[%clk 0:02:31]}  Be6 {[%clk 0:02:49]} 12. Kb1 {[%clk 0:02:31]}  Qc7 {[%clk 0:02:45]} 13. Ng3 {[%clk 0:02:13]}  Nd7 {[%clk 0:02:43]} 14. Bd3 {[%clk 0:02:12]}  b5 {[%clk 0:02:40]} 15. Qe2 {[%clk 0:02:09]}  Rfe8 {[%clk 0:02:37]} 16. Qf3 {[%clk 0:02:06]}  Bd5 {[%clk 0:02:28]} 17. Be4 {[%clk 0:02:05]}  Nb6 {[%clk 0:02:26]} 18. Rhe1 {[%clk 0:01:58]}  Bxg3 {[%clk 0:02:17]} 19. hxg3 {[%clk 0:01:47]}  Bxe4 {[%clk 0:01:46]} 20. Rxe4 {[%clk 0:01:46]}  Nd5 {[%clk 0:01:43]} 21. Bd2 {[%clk 0:01:42]}  Qd7 {[%clk 0:01:42]} 22. Rde1 {[%clk 0:01:41]}  Re6 {[%clk 0:01:28]} 23. Rxe6 {[%clk 0:01:37]}  fxe6 {[%clk 0:01:29]} 24. Qe4 {[%clk 0:01:36]}  Re8 {[%clk 0:01:28]} 25. Rh1 {[%clk 0:01:27]}  g6 {[%clk 0:01:15]} 26. g4 {[%clk 0:01:19]}  Nb6 {[%clk 0:01:11]} 27. g5 {[%clk 0:01:09]}  f5 {[%clk 0:01:11]} 28. Qd3 {[%clk 0:01:03]}  e5 {[%clk 0:01:08]} 29. Bc3 {[%clk 0:00:40]}  e4 {[%clk 0:01:07]} 30. Qh3 {[%clk 0:00:38]}  Nd5 {[%clk 0:01:07]} 31. Bd2 {[%clk 0:00:37]}  Qf7 {[%clk 0:01:07]} 32. g3 {[%clk 0:00:29]}  b4 {[%clk 0:01:02]} 33. Qf1 {[%clk 0:00:28]}  a5 {[%clk 0:01:02]} 34. Qa6 {[%clk 0:00:26]}  Qc7 {[%clk 0:01:01]} 35. Qc4 {[%clk 0:00:24]}  Qb7 {[%clk 0:00:58]} 36. Qc5 {[%clk 0:00:22]}  Rd8 {[%clk 0:00:55]} 37. Ka1 {[%clk 0:00:20]}  Qb5 {[%clk 0:00:55]} 38. Qxb5 {[%clk 0:00:17]}  cxb5 {[%clk 0:00:55]} 39. Be3 {[%clk 0:00:15]}  Rc8 {[%clk 0:00:55]} 40. Kb1 {[%clk 0:00:15]}  a4 {[%clk 0:00:55]} 41. Kc1 {[%clk 0:00:10]}  a3 {[%clk 0:00:55]} 42. Kb1 {[%clk 0:00:10]}  Ra8 {[%clk 0:00:54]} 43. Bd2 {[%clk 0:00:09]}  Ra7 {[%clk 0:00:51]} 44. Rd1 {[%clk 0:00:08]}  Kf7 {[%clk 0:00:51]} 45. c3 {[%clk 0:00:08]}  bxc3 {[%clk 0:00:50]} 46. bxc3 {[%clk 0:00:07]}  Ke6 {[%clk 0:00:47]} 47. Kc2 {[%clk 0:00:07]}  Nb6 {[%clk 0:00:47]} 48. Kb3 {[%clk 0:00:07]}  Nc4 {[%clk 0:00:46]} 49. Bc1 {[%clk 0:00:08]}  Kd5 {[%clk 0:00:18]} 50. Kb4 {[%clk 0:00:08]}  Ra5 {[%clk 0:00:12]} 51. Rh1 {[%clk 0:00:07]}  Ra7 {[%clk 0:00:12]} 52. Kb3 {[%clk 0:00:07]}  Re7 {[%clk 0:00:11]} 53. Rd1 {[%clk 0:00:07]}  Rc7 {[%clk 0:00:09]} 54. Rh1 {[%clk 0:00:07]}  Ra7 {[%clk 0:00:08]} 55. Kb4 {[%clk 0:00:07]}  Kc6 {[%clk 0:00:07]} 56. Kb3 {[%clk 0:00:08]}  Nb6 {[%clk 0:00:06]} 57. Rd1 {[%clk 0:00:09]}  Nd5 {[%clk 0:00:06]} 58. Bxa3 {[%clk 0:00:09]}  Rf7 {[%clk 0:00:06]} 59. Bb4 {[%clk 0:00:09]}  f4 {[%clk 0:00:06]} 60. a4 {[%clk 0:00:09]}  bxa4+ {[%clk 0:00:06]} 61. Kxa4 {[%clk 0:00:10]}  e3 {[%clk 0:00:06]} 62. fxe3 {[%clk 0:00:10]}  Nxe3 {[%clk 0:00:07]} 63. Rg1 {[%clk 0:00:10]}  f3 {[%clk 0:00:07]} 64. c4 {[%clk 0:00:10]}  f2 {[%clk 0:00:07]} 65. d5+ {[%clk 0:00:10]}  Kd7 {[%clk 0:00:07]} 66. Ra1 {[%clk 0:00:07]}  Nxc4 {[%clk 0:00:04]} 67. Kb5 {[%clk 0:00:06]}  f1=Q {[%clk 0:00:04]} 68. Ra7+ {[%clk 0:00:06]}  Kc8 {[%clk 0:00:04]} 69. Kc6 {[%clk 0:00:07]}  Rxa7 {[%clk 0:00:04]} 0-1


[Site "https://www.chess.com"]

[Event "Titled Tuesday Blitz November 08 Early 2022"]
[White "Galchenko, Matvey"]
[Black "Mouhamad, Joachim"]
[WhiteFideId "24175480"]
[BlackFideId "656410"]
[WhiteElo "2403"]
[BlackElo "2164"]
[Result "1-0"]
[Round "06"]
[TimeControl "180+1"]
[Date "2022.11.08"]
[WhiteClock "0:02:26"]
[BlackClock "0:00:28"]

1. f4 {[%clk 0:02:49]}  c5 {[%clk 0:02:58]} 2. Nf3 {[%clk 0:02:49]}  d5 {[%clk 0:02:58]} 3. g3 {[%clk 0:02:50]}  Nc6 {[%clk 0:02:59]} 4. Bg2 {[%clk 0:02:51]}  Nf6 {[%clk 0:02:58]} 5. O-O {[%clk 0:02:52]}  g6 {[%clk 0:02:58]} 6. d3 {[%clk 0:02:52]}  Bg7 {[%clk 0:02:57]} 7. Nc3 {[%clk 0:02:52]}  d4 {[%clk 0:02:56]} 8. Na4 {[%clk 0:02:52]}  Qd6 {[%clk 0:02:52]} 9. c4 {[%clk 0:02:51]}  O-O {[%clk 0:02:47]} 10. a3 {[%clk 0:02:51]}  Bg4 {[%clk 0:02:41]} 11. Rb1 {[%clk 0:02:50]}  Rad8 {[%clk 0:02:22]} 12. b4 {[%clk 0:02:46]}  cxb4 {[%clk 0:02:20]} 13. axb4 {[%clk 0:02:47]}  b6 {[%clk 0:02:00]} 14. b5 {[%clk 0:02:45]}  Bxf3 {[%clk 0:01:51]} 15. Bxf3 {[%clk 0:02:45]}  Nb8 {[%clk 0:01:51]} 16. Ra1 {[%clk 0:02:36]}  e5 {[%clk 0:01:44]} 17. Ba3 {[%clk 0:02:31]}  Qc7 {[%clk 0:01:44]} 18. Bxf8 {[%clk 0:02:31]}  Bxf8 {[%clk 0:01:44]} 19. fxe5 {[%clk 0:02:32]}  Qxe5 {[%clk 0:01:43]} 20. Nb2 {[%clk 0:02:32]}  Rd7 {[%clk 0:01:14]} 21. Qd2 {[%clk 0:02:31]}  h5 {[%clk 0:01:04]} 22. Qf4 {[%clk 0:02:29]}  Qxf4 {[%clk 0:00:52]} 23. gxf4 {[%clk 0:02:30]}  Bd6 {[%clk 0:00:45]} 24. Nd1 {[%clk 0:02:30]}  Re7 {[%clk 0:00:40]} 25. Nf2 {[%clk 0:02:27]}  Bxf4 {[%clk 0:00:39]} 26. Ne4 {[%clk 0:02:27]}  Be3+ {[%clk 0:00:39]} 27. Kh1 {[%clk 0:02:27]}  Nxe4 {[%clk 0:00:38]} 28. Bxe4 {[%clk 0:02:28]}  Rc7 {[%clk 0:00:34]} 29. Bd5 {[%clk 0:02:24]}  Kg7 {[%clk 0:00:32]} 30. Ra2 {[%clk 0:02:25]}  f5 {[%clk 0:00:32]} 31. Rfa1 {[%clk 0:02:26]}  Nd7 {[%clk 0:00:28]} 32. Rxa7 {[%clk 0:02:26]} 1-0


[Site "https://www.chess.com"]

[Event "Titled Tuesday Blitz November 08 Early 2022"]
[White "Garic, Radomir"]
[Black "Simonovic, Miroslav"]
[WhiteFideId "920959"]
[BlackFideId "919152"]
[WhiteElo "2227"]
[BlackElo "2043"]
[Result "1/2-1/2"]
[Round "06"]
[TimeControl "180+1"]
[Date "2022.11.09"]
[WhiteClock "0:00:01"]
[BlackClock "0:00:10"]

1. e4 {[%clk 0:03:00]}  c5 {[%clk 0:03:00]} 2. Nf3 {[%clk 0:02:59]}  Nc6 {[%clk 0:03:00]} 3. Bb5 {[%clk 0:02:59]}  g6 {[%clk 0:03:00]} 4. Bxc6 {[%clk 0:02:58]}  dxc6 {[%clk 0:03:01]} 5. d3 {[%clk 0:02:58]}  Bg7 {[%clk 0:03:02]} 6. h3 {[%clk 0:02:58]}  e5 {[%clk 0:03:01]} 7. Nc3 {[%clk 0:02:59]}  Ne7 {[%clk 0:03:01]} 8. Be3 {[%clk 0:02:59]}  b6 {[%clk 0:03:01]} 9. Qd2 {[%clk 0:02:59]}  h6 {[%clk 0:03:01]} 10. O-O {[%clk 0:02:58]}  Be6 {[%clk 0:03:02]} 11. Nh2 {[%clk 0:02:54]}  c4 {[%clk 0:02:51]} 12. f4 {[%clk 0:02:52]}  cxd3 {[%clk 0:02:50]} 13. cxd3 {[%clk 0:02:53]}  exf4 {[%clk 0:02:48]} 14. Rxf4 {[%clk 0:02:49]}  O-O {[%clk 0:02:44]} 15. Ng4 {[%clk 0:02:38]}  f5 {[%clk 0:02:40]} 16. exf5 {[%clk 0:02:19]}  Nxf5 {[%clk 0:02:41]} 17. Raf1 {[%clk 0:02:09]}  h5 {[%clk 0:02:16]} 18. Nf2 {[%clk 0:01:48]}  Bh6 {[%clk 0:02:15]} 19. Rxf5 {[%clk 0:01:40]}  Rxf5 {[%clk 0:01:34]} 20. Bxh6 {[%clk 0:01:38]}  g5 {[%clk 0:01:34]} 21. Nce4 {[%clk 0:01:27]}  g4 {[%clk 0:01:08]} 22. Bg5 {[%clk 0:01:17]}  Qd4 {[%clk 0:00:57]} 23. Be3 {[%clk 0:01:03]}  Qd5 {[%clk 0:00:57]} 24. hxg4 {[%clk 0:00:59]}  hxg4 {[%clk 0:00:58]} 25. Nxg4 {[%clk 0:00:56]}  Rxf1+ {[%clk 0:00:58]} 26. Kxf1 {[%clk 0:00:57]}  Qf5+ {[%clk 0:00:58]} 27. Ngf2 {[%clk 0:00:52]}  Bxa2 {[%clk 0:00:52]} 28. Qc3 {[%clk 0:00:42]}  Rf8 {[%clk 0:00:47]} 29. Ke2 {[%clk 0:00:33]}  Bd5 {[%clk 0:00:45]} 30. Kd2 {[%clk 0:00:28]}  Rd8 {[%clk 0:00:24]} 31. Kc2 {[%clk 0:00:27]}  Kf7 {[%clk 0:00:15]} 32. Qa3 {[%clk 0:00:23]}  Rd7 {[%clk 0:00:12]} 33. Nd6+ {[%clk 0:00:22]}  Rxd6 {[%clk 0:00:13]} 34. Qxd6 {[%clk 0:00:23]}  Bxg2 {[%clk 0:00:12]} 35. Qc7+ {[%clk 0:00:20]}  Kg6 {[%clk 0:00:11]} 36. Qxa7 {[%clk 0:00:20]}  b5 {[%clk 0:00:10]} 37. Qb6 {[%clk 0:00:19]}  Bd5 {[%clk 0:00:09]} 38. Qd4 {[%clk 0:00:18]}  Qf3 {[%clk 0:00:08]} 39. Qg4+ {[%clk 0:00:17]}  Qxg4 {[%clk 0:00:08]} 40. Nxg4 {[%clk 0:00:18]}  Kf5 {[%clk 0:00:09]} 41. Nf2 {[%clk 0:00:18]}  Ke5 {[%clk 0:00:07]} 42. b4 {[%clk 0:00:18]}  Be6 {[%clk 0:00:06]} 43. Kc3 {[%clk 0:00:18]}  Bd5 {[%clk 0:00:07]} 44. Bc5 {[%clk 0:00:19]}  Kf4 {[%clk 0:00:07]} 45. Bd4 {[%clk 0:00:19]}  Kf3 {[%clk 0:00:07]} 46. Bb6 {[%clk 0:00:19]}  Ke2 {[%clk 0:00:07]} 47. Ng4 {[%clk 0:00:18]}  Bg8 {[%clk 0:00:07]} 48. Ne5 {[%clk 0:00:18]}  Bh7 {[%clk 0:00:07]} 49. Kd4 {[%clk 0:00:18]}  Bf5 {[%clk 0:00:07]} 50. Nxc6 {[%clk 0:00:17]}  Bxd3 {[%clk 0:00:06]} 51. Kc5 {[%clk 0:00:17]}  Bc4 {[%clk 0:00:07]} 52. Nd4+ {[%clk 0:00:16]}  Kd3 {[%clk 0:00:08]} 53. Nxb5 {[%clk 0:00:16]}  Bb3 {[%clk 0:00:07]} 54. Nd6 {[%clk 0:00:16]}  Ba4 {[%clk 0:00:07]} 55. Bd8 {[%clk 0:00:16]}  Kc2 {[%clk 0:00:07]} 56. Nc4 {[%clk 0:00:16]}  Kb3 {[%clk 0:00:07]} 57. Na5+ {[%clk 0:00:15]}  Ka3 {[%clk 0:00:06]} 58. Be7 {[%clk 0:00:15]}  Be8 {[%clk 0:00:07]} 59. b5 {[%clk 0:00:13]}  Bxb5 {[%clk 0:00:05]} 60. Kxb5+ {[%clk 0:00:14]}  Kb2 {[%clk 0:00:05]} 61. Kc4 {[%clk 0:00:12]}  Kc2 {[%clk 0:00:06]} 62. Bg5 {[%clk 0:00:12]}  Kd1 {[%clk 0:00:06]} 63. Nb3 {[%clk 0:00:13]}  Ke1 {[%clk 0:00:06]} 64. Kd3 {[%clk 0:00:14]}  Kf2 {[%clk 0:00:07]} 65. Bd2 {[%clk 0:00:13]}  Kg2 {[%clk 0:00:08]} 66. Nd4 {[%clk 0:00:14]}  Kh1 {[%clk 0:00:08]} 67. Ke2 {[%clk 0:00:14]}  Kg2 {[%clk 0:00:09]} 68. Be3 {[%clk 0:00:13]}  Kg3 {[%clk 0:00:09]} 69. Nf3 {[%clk 0:00:13]}  Kg2 {[%clk 0:00:10]} 70. Bf4 {[%clk 0:00:12]}  Kh3 {[%clk 0:00:09]} 71. Nd4 {[%clk 0:00:10]}  Kg2 {[%clk 0:00:09]} 72. Ke3 {[%clk 0:00:11]}  Kg1 {[%clk 0:00:10]} 73. Kf3 {[%clk 0:00:08]}  Kf1 {[%clk 0:00:10]} 74. Bh2 {[%clk 0:00:05]}  Ke1 {[%clk 0:00:10]} 75. Ke3 {[%clk 0:00:04]}  Kf1 {[%clk 0:00:10]} 76. Kf3 {[%clk 0:00:01]}  Ke1 {[%clk 0:00:10]} 1/2-1/2


[Site "https://www.chess.com"]

[Event "Titled Tuesday Blitz November 08 Early 2022"]
[White "Goldin, Alexander"]
[Black "Bok, Benjamin"]
[WhiteFideId "2019540"]
[BlackFideId "1017063"]
[WhiteElo "2618"]
[BlackElo "2658"]
[Result "0-1"]
[Round "06"]
[TimeControl "180+1"]
[Date "2022.11.09"]
[WhiteClock "0:00:18"]
[BlackClock "0:00:06"]

1. d4 {[%clk 0:03:00]}  Nf6 {[%clk 0:02:59]} 2. c4 {[%clk 0:03:00]}  e6 {[%clk 0:03:00]} 3. Nf3 {[%clk 0:02:59]}  d5 {[%clk 0:03:00]} 4. Nc3 {[%clk 0:02:59]}  c6 {[%clk 0:03:00]} 5. cxd5 {[%clk 0:02:58]}  exd5 {[%clk 0:03:01]} 6. Bf4 {[%clk 0:02:57]}  Bf5 {[%clk 0:02:58]} 7. h3 {[%clk 0:02:56]}  Bd6 {[%clk 0:02:56]} 8. Bxd6 {[%clk 0:02:56]}  Qxd6 {[%clk 0:02:57]} 9. Qb3 {[%clk 0:02:56]}  Qc7 {[%clk 0:02:50]} 10. Nh4 {[%clk 0:02:51]}  Bg6 {[%clk 0:02:38]} 11. e3 {[%clk 0:02:45]}  Nbd7 {[%clk 0:02:38]} 12. Nxg6 {[%clk 0:02:41]}  hxg6 {[%clk 0:02:38]} 13. Bd3 {[%clk 0:02:41]}  g5 {[%clk 0:02:12]} 14. O-O-O {[%clk 0:02:40]}  b5 {[%clk 0:02:00]} 15. Kb1 {[%clk 0:02:37]}  a5 {[%clk 0:01:56]} 16. Qc2 {[%clk 0:02:36]}  Qd6 {[%clk 0:01:15]} 17. e4 {[%clk 0:02:23]}  dxe4 {[%clk 0:01:15]} 18. Nxe4 {[%clk 0:02:23]}  Nxe4 {[%clk 0:01:15]} 19. Bxe4 {[%clk 0:02:24]}  Rc8 {[%clk 0:01:15]} 20. Rde1 {[%clk 0:02:13]}  Kf8 {[%clk 0:01:05]} 21. Bf5 {[%clk 0:02:10]}  g6 {[%clk 0:00:55]} 22. Bxd7 {[%clk 0:02:09]}  Qxd7 {[%clk 0:00:56]} 23. Qc5+ {[%clk 0:02:09]}  Kg7 {[%clk 0:00:56]} 24. Qe5+ {[%clk 0:01:36]}  f6 {[%clk 0:00:54]} 25. Qe7+ {[%clk 0:01:34]}  Qxe7 {[%clk 0:00:54]} 26. Rxe7+ {[%clk 0:01:34]}  Kh6 {[%clk 0:00:55]} 27. Re6 {[%clk 0:01:23]}  Rhd8 {[%clk 0:00:52]} 28. Rd1 {[%clk 0:01:15]}  f5 {[%clk 0:00:46]} 29. Kc2 {[%clk 0:00:58]}  Rd5 {[%clk 0:00:27]} 30. Re5 {[%clk 0:00:56]}  Rxe5 {[%clk 0:00:20]} 31. dxe5 {[%clk 0:00:55]}  Re8 {[%clk 0:00:21]} 32. Re1 {[%clk 0:00:50]}  Kg7 {[%clk 0:00:21]} 33. Kc3 {[%clk 0:00:48]}  c5 {[%clk 0:00:21]} 34. a4 {[%clk 0:00:48]}  bxa4 {[%clk 0:00:20]} 35. Kc4 {[%clk 0:00:48]}  Kf7 {[%clk 0:00:12]} 36. Kxc5 {[%clk 0:00:47]}  Ke6 {[%clk 0:00:12]} 37. Re2 {[%clk 0:00:48]}  Rb8 {[%clk 0:00:12]} 38. g3 {[%clk 0:00:41]}  Rb3 {[%clk 0:00:11]} 39. h4 {[%clk 0:00:37]}  gxh4 {[%clk 0:00:11]} 40. gxh4 {[%clk 0:00:37]}  Rb4 {[%clk 0:00:11]} 41. Kc6 {[%clk 0:00:29]}  Rb3 {[%clk 0:00:11]} 42. Kc5 {[%clk 0:00:29]}  a3 {[%clk 0:00:11]} 43. bxa3 {[%clk 0:00:29]}  Rxa3 {[%clk 0:00:12]} 44. f4 {[%clk 0:00:27]}  Rf3 {[%clk 0:00:12]} 45. Rg2 {[%clk 0:00:22]}  Rxf4 {[%clk 0:00:13]} 46. Rxg6+ {[%clk 0:00:23]}  Kxe5 {[%clk 0:00:13]} 47. h5 {[%clk 0:00:24]}  Rh4 {[%clk 0:00:12]} 48. h6 {[%clk 0:00:24]}  f4 {[%clk 0:00:12]} 49. Kc4 {[%clk 0:00:23]}  Ke4 {[%clk 0:00:11]} 50. Re6+ {[%clk 0:00:23]}  Kf3 {[%clk 0:00:10]} 51. Kd3 {[%clk 0:00:23]}  Kf2 {[%clk 0:00:09]} 52. Re4 {[%clk 0:00:20]}  Rh3+ {[%clk 0:00:08]} 53. Kd2 {[%clk 0:00:20]}  f3 {[%clk 0:00:08]} 54. Re6 {[%clk 0:00:20]}  a4 {[%clk 0:00:08]} 55. Ra6 {[%clk 0:00:20]}  a3 {[%clk 0:00:08]} 56. Kd1 {[%clk 0:00:18]}  Kg2 {[%clk 0:00:06]} 57. Rg6+ {[%clk 0:00:17]}  Kf1 {[%clk 0:00:06]} 58. Ra6 {[%clk 0:00:17]}  f2 {[%clk 0:00:06]} 59. Kd2 {[%clk 0:00:17]}  a2 {[%clk 0:00:06]} 60. Rxa2 {[%clk 0:00:17]}  Rxh6 {[%clk 0:00:07]} 61. Ra1+ {[%clk 0:00:17]}  Kg2 {[%clk 0:00:07]} 62. Ke2 {[%clk 0:00:18]}  Re6+ {[%clk 0:00:06]} 63. Kd3 {[%clk 0:00:18]}  f1=Q+ {[%clk 0:00:06]} 0-1


[Site "https://www.chess.com"]

[Event "Titled Tuesday Blitz November 08 Early 2022"]
[White "Gurevich, Dmitry"]
[Black "Matlakov, Maxim"]
[WhiteFideId "2000407"]
[BlackFideId "4168003"]
[WhiteElo "2616"]
[BlackElo "2909"]
[Result "0-1"]
[Round "06"]
[TimeControl "180+1"]
[Date "2022.11.09"]
[WhiteClock "0:00:02"]
[BlackClock "0:00:12"]

1. d4 {[%clk 0:03:00]}  Nf6 {[%clk 0:02:58]} 2. c4 {[%clk 0:02:59]}  e6 {[%clk 0:02:58]} 3. Nf3 {[%clk 0:02:59]}  d5 {[%clk 0:02:55]} 4. Nc3 {[%clk 0:02:58]}  h6 {[%clk 0:02:52]} 5. g3 {[%clk 0:02:54]}  Bd6 {[%clk 0:02:48]} 6. Bg2 {[%clk 0:02:52]}  Nc6 {[%clk 0:02:48]} 7. O-O {[%clk 0:02:48]}  O-O {[%clk 0:02:47]} 8. b3 {[%clk 0:02:44]}  dxc4 {[%clk 0:02:47]} 9. bxc4 {[%clk 0:02:43]}  e5 {[%clk 0:02:47]} 10. d5 {[%clk 0:02:39]}  Na5 {[%clk 0:02:05]} 11. Nd2 {[%clk 0:02:33]}  b6 {[%clk 0:02:00]} 12. Bb2 {[%clk 0:02:23]}  Re8 {[%clk 0:01:58]} 13. Qc2 {[%clk 0:02:16]}  Nd7 {[%clk 0:01:29]} 14. Nb5 {[%clk 0:02:04]}  Nc5 {[%clk 0:01:26]} 15. Nb3 {[%clk 0:02:00]}  Nab7 {[%clk 0:01:23]} 16. Nc1 {[%clk 0:01:55]}  Bd7 {[%clk 0:01:20]} 17. a4 {[%clk 0:01:52]}  Qc8 {[%clk 0:01:19]} 18. e4 {[%clk 0:01:46]}  a6 {[%clk 0:01:14]} 19. Nc3 {[%clk 0:01:43]}  Na5 {[%clk 0:01:11]} 20. Nd1 {[%clk 0:01:36]}  f5 {[%clk 0:01:08]} 21. f3 {[%clk 0:01:33]}  Rf8 {[%clk 0:01:06]} 22. Ne3 {[%clk 0:01:28]}  fxe4 {[%clk 0:00:50]} 23. fxe4 {[%clk 0:01:27]}  Rxf1+ {[%clk 0:00:50]} 24. Bxf1 {[%clk 0:01:22]}  Qe8 {[%clk 0:00:51]} 25. Bg2 {[%clk 0:01:13]}  Bxa4 {[%clk 0:00:50]} 26. Qe2 {[%clk 0:01:09]}  Bd7 {[%clk 0:00:50]} 27. Nd3 {[%clk 0:01:07]}  Nab3 {[%clk 0:00:49]} 28. Rf1 {[%clk 0:01:03]}  a5 {[%clk 0:00:43]} 29. Nf5 {[%clk 0:01:00]}  Bxf5 {[%clk 0:00:41]} 30. exf5 {[%clk 0:00:58]}  Nd4 {[%clk 0:00:25]} 31. Qe3 {[%clk 0:00:44]}  Qh5 {[%clk 0:00:22]} 32. f6 {[%clk 0:00:38]}  Rf8 {[%clk 0:00:22]} 33. fxg7 {[%clk 0:00:31]}  Rxf1+ {[%clk 0:00:21]} 34. Bxf1 {[%clk 0:00:30]}  Nf3+ {[%clk 0:00:21]} 35. Kg2 {[%clk 0:00:26]}  e4 {[%clk 0:00:21]} 36. h3 {[%clk 0:00:17]}  exd3 {[%clk 0:00:17]} 37. Bxd3 {[%clk 0:00:11]}  Ne5 {[%clk 0:00:14]} 38. Be2 {[%clk 0:00:06]}  Qg5 {[%clk 0:00:14]} 39. Qf2 {[%clk 0:00:05]}  Kxg7 {[%clk 0:00:13]} 40. h4 {[%clk 0:00:04]}  Qf6 {[%clk 0:00:13]} 41. Qe3 {[%clk 0:00:04]}  Qf5 {[%clk 0:00:13]} 42. g4 {[%clk 0:00:02]}  Qe4+ {[%clk 0:00:12]} 0-1


[Site "https://www.chess.com"]

[Event "Titled Tuesday Blitz November 08 Early 2022"]
[White "Hajiyev, Kanan"]
[Black "Sailer, Mike"]
[WhiteFideId "13404148"]
[BlackFideId "2012901"]
[WhiteElo "2118"]
[BlackElo "2109"]
[Result "1/2-1/2"]
[Round "06"]
[TimeControl "180+1"]
[Date "2022.11.09"]
[WhiteClock "0:00:10"]
[BlackClock "0:00:11"]

1. d4 {[%clk 0:02:17]}  d5 {[%clk 0:02:59]} 2. c4 {[%clk 0:02:17]}  Bf5 {[%clk 0:02:55]} 3. cxd5 {[%clk 0:02:18]}  Bxb1 {[%clk 0:02:52]} 4. Qa4+ {[%clk 0:02:15]}  Qd7 {[%clk 0:02:52]} 5. Qxd7+ {[%clk 0:02:15]}  Nxd7 {[%clk 0:02:53]} 6. Rxb1 {[%clk 0:02:15]}  Ngf6 {[%clk 0:02:52]} 7. Nf3 {[%clk 0:01:51]}  Nb6 {[%clk 0:02:51]} 8. Bd2 {[%clk 0:01:33]}  Nbxd5 {[%clk 0:02:45]} 9. e3 {[%clk 0:01:30]}  Ne4 {[%clk 0:02:41]} 10. Bc4 {[%clk 0:01:24]}  Nxd2 {[%clk 0:02:34]} 11. Kxd2 {[%clk 0:01:25]}  e6 {[%clk 0:02:34]} 12. Bxd5 {[%clk 0:01:22]}  exd5 {[%clk 0:02:33]} 13. Rhc1 {[%clk 0:01:22]}  Bb4+ {[%clk 0:02:27]} 14. Kd3 {[%clk 0:01:22]}  c6 {[%clk 0:02:27]} 15. a3 {[%clk 0:01:23]}  Bd6 {[%clk 0:02:22]} 16. b4 {[%clk 0:01:21]}  a6 {[%clk 0:02:22]} 17. a4 {[%clk 0:01:21]}  f6 {[%clk 0:02:08]} 18. g3 {[%clk 0:01:05]}  Kd7 {[%clk 0:02:07]} 19. a5 {[%clk 0:01:00]}  g5 {[%clk 0:01:56]} 20. Kc3 {[%clk 0:00:50]}  h5 {[%clk 0:01:54]} 21. h4 {[%clk 0:00:48]}  Rag8 {[%clk 0:01:30]} 22. Rh1 {[%clk 0:00:48]}  Ke6 {[%clk 0:01:26]} 23. Rh2 {[%clk 0:00:46]}  g4 {[%clk 0:01:16]} 24. Nd2 {[%clk 0:00:42]}  Rb8 {[%clk 0:01:07]} 25. Nb3 {[%clk 0:00:41]}  b6 {[%clk 0:01:01]} 26. axb6 {[%clk 0:00:36]}  Rxb6 {[%clk 0:01:01]} 27. Nc5+ {[%clk 0:00:32]}  Bxc5 {[%clk 0:01:01]} 28. dxc5 {[%clk 0:00:33]}  Rb5 {[%clk 0:00:59]} 29. Ra1 {[%clk 0:00:32]}  a5 {[%clk 0:00:47]} 30. Rxa5 {[%clk 0:00:31]}  Rxa5 {[%clk 0:00:47]} 31. bxa5 {[%clk 0:00:32]}  Ra8 {[%clk 0:00:41]} 32. Kb4 {[%clk 0:00:31]}  Rb8+ {[%clk 0:00:37]} 33. Ka4 {[%clk 0:00:29]}  Rb1 {[%clk 0:00:34]} 34. f3 {[%clk 0:00:26]}  gxf3 {[%clk 0:00:33]} 35. Rf2 {[%clk 0:00:26]}  Ke5 {[%clk 0:00:17]} 36. Rxf3 {[%clk 0:00:25]}  f5 {[%clk 0:00:17]} 37. Rf4 {[%clk 0:00:21]}  Ra1+ {[%clk 0:00:09]} 38. Kb4 {[%clk 0:00:21]}  Rb1+ {[%clk 0:00:10]} 39. Ka3 {[%clk 0:00:20]}  Ra1+ {[%clk 0:00:10]} 40. Kb4 {[%clk 0:00:21]}  Rb1+ {[%clk 0:00:11]} 41. Kc3 {[%clk 0:00:21]}  Ra1 {[%clk 0:00:11]} 42. Kb4 {[%clk 0:00:10]} 1/2-1/2


[Site "https://www.chess.com"]